Cogmind - Beta 13 @@@ ROGUE MODE // 2024.04.05 @ 21:25:42 Player: Olafz Result: Destroyed by S-10 Pest with Light Assault Rifle Performance ------------- Evolutions (0) 0 Regions Visited (4) 800 Robots Destroyed (11) 55 Value Destroyed (261) 261 Prototype IDs (23) 460 Alien Tech Used (0) 0 Bonus (300) 300 TOTAL SCORE: 1876 Bonus ------- Aligned with FarCom 300 Cogmind --------- Core Integrity 0/250 Matter 128/300 Energy 125/125 System Corruption 0% Temperature Cool (2) Movement Walking (190) Ox1 Location -9/Mines Parts ------- > --- POWER (1) -------- Light Ion Engine > --- PROPULSION (2) --- Aluminum Leg > --- UTILITY (2) ------ Small Storage Unit 0b10 Alert Chip > --- WEAPON (2) ------- Light Assault Rifle Heavy Assault Rifle > --- INVENTORY (8) ---- Ion Engine Light Ion Engine Improved Ion Engine Aluminum Leg Improved Targeting Computer Assault Rifle Assault Rifle Peak State ------------ > --- POWER ------------ Light Nuclear Core > --- PROPULSION ------- Aluminum Leg Improved Aluminum Leg > --- UTILITY ---------- Small Storage Unit 0b10 Alert Chip > --- WEAPON ----------- Assault Rifle Heavy Assault Rifle > --- INVENTORY -------- Ion Engine Light Ion Engine Improved Ion Engine Aluminum Leg Improved Targeting Computer Assault Rifle [Rating: 16] Favorites ----------- Power Ion Engine Engine Ion Engine Power Core Light Nuclear Core Propulsion Aluminum Leg Leg Aluminum Leg Utility Small Storage Unit Storage Small Storage Unit Processor 0b10 Alert Chip Weapon Assault Rifle Ballistic Gun Assault Rifle Build | -11 -10 -10 -10 -9 ------- Run | Yrd Mat Min Exi Min Slots Evolved . | . . . . . Power . | . . . . . Propulsion . | . . . . . Utility . | . . . . . Weapon . | . . . . . Parts Attached 14 | 6 . . 1 7 Power 5 | 1 . . . 4 Engine 4 | 1 . . . 3 Core 1 | . . . . 1 Reactor . | . . . . . Propulsion 3 | 2 . . . 1 Treads . | . . . . . Leg 3 | 2 . . . 1 Wheel . | . . . . . Hover . | . . . . . Flight . | . . . . . Utility 2 | 1 . . 1 . Device . | . . . . . Storage 1 | 1 . . . . Processor 1 | . . . 1 . Hackware . | . . . . . Protection . | . . . . . Artifact . | . . . . . Weapon 4 | 2 . . . 2 Energy Gun . | . . . . . Energy Cannon . | . . . . . Ballistic Gun 4 | 2 . . . 2 Ballistic Cannon . | . . . . . Launcher . | . . . . . Special Weapon . | . . . . . Impact Weapon . | . . . . . Slashing Weapon . | . . . . . Piercing Weapon . | . . . . . Special Melee Weapon . | . . . . . Unidentified Prototypes . | . . . . . Parts Lost 2 | . . . . 2 Power 1 | . . . . 1 Propulsion 1 | . . . . 1 Utility . | . . . . . Weapon . | . . . . . Highest Loss Streak 1 | . . . . 1 To Critical Strikes 1 | . . . . 1 Average Slot Usage (%) 95 | . 85 85 92 99 Engine 11 | . 14 14 14 8 Core 2 | . . . . 5 Leg 27 | . 28 28 28 27 Storage 14 | . 14 14 14 14 Processor 9 | . . . 6 14 Ballistic Gun 28 | . 28 28 28 28 Naked Turns . | . . . . . Heaviest Build 17 | 14 14 14 14 17 Greatest Support 23 | 20 20 20 20 23 Greatest Overweight (x) . | . . . . . Average Overweight (x) . | . . . . . Largest Inventory Capacity 8 | 8 8 8 8 8 Average Capacity 7 | 6 8 8 8 8 Most Carried 7 | 1 1 1 1 7 Average Carried 3 | . 1 1 1 5 Final Capacity 8 | 8 8 8 8 8 Final Carried 7 | 1 1 1 1 7 Class Distribution -------------------- 100% | Mutant Dominant Class ---------------- Mutant | -10/Materials Mutant | -10/Mines Mutant | -10/Exiles Mutant | -9/Mines Resources | -11 -10 -10 -10 -9 ----------- Run | Yrd Mat Min Exi Min Matter Collected 393 | 42 . 43 . 308 Remotely . | . . . . . Salvage Created 285 | . . 43 . 242 Parts 23 | . . 4 . 19 Haulers Intercepted . | . . . . . Recyclers Shooed 1 | . . . . 1 Parts Field Recycled . | . . . . . Retrieved Matter . | . . . . . Parts Self-Destructed . | . . . . . Prevented . | . . . . . Kills | -11 -10 -10 -10 -9 ------- Run | Yrd Mat Min Exi Min Combat Hostiles Destroyed 11 | . . 3 . 8 Guns 11 | . . 3 . 8 Classes Destroyed 3 | . . 1 . 2 Swarmer 7 | . . 3 . 4 Grunt 2 | . . . . 2 Sentry 2 | . . . . 2 Best Kill Streak 3 | . . 3 . 3 Combat Bots Only 3 | . . 3 . 3 Max Kills in Single Turn 1 | . . 1 . 1 Gunslinging . | . . . . . Exploded . | . . . . . Melee . | . . . . . Uniques/NPCs Destroyed . | . . . . . Combat | -11 -10 -10 -10 -9 -------- Run | Yrd Mat Min Exi Min Hostile Shots Fired 136 | . . 25 . 111 Missed 51 | . . 11 . 40 Damage Taken 861 | . . 111 . 750 Core 251 | . . 22 . 229 Absorbed by Shields . | . . . . . Core Remaining (%) 100 | 100 . . . . Volleys Fired 46 | . . 9 . 37 Largest 2 | . . 2 . 2 Hottest 43 | . . 40 . 43 Shots Fired 92 | . . 18 . 74 Gun 92 | . . 18 . 74 Cannon . | . . . . . Launcher . | . . . . . Special . | . . . . . Kinetic 92 | . . 18 . 74 Thermal . | . . . . . Explosive . | . . . . . Electromagnetic . | . . . . . Robot Hit Streak 10 | . . 4 . 10 Robot Miss Streak 5 | . . 3 . 5 Penetration Max . | . . . . . Secondary Targets 2 | . . 2 . . Max Gunslinging Chain 1 | . . 1 . . Shots Hit Robots 55 | . . 10 . 45 Core Hits 16 | . . 3 . 13 Critical Kills 1 | . . . . 1 Critical Parts Destroyed . | . . . . . Critical Strikes 1 | . . . . 1 Destroy 1 | . . . . 1 Melee Attacks . | . . . . . Impact . | . . . . . Slashing . | . . . . . Piercing . | . . . . . Sneak Attacks . | . . . . . Combat Hostiles . | . . . . . Follow-up Attacks . | . . . . . Damage Inflicted 835 | . . 126 . 709 Guns 782 | . . 126 . 656 Cannons . | . . . . . Explosions . | . . . . . Melee . | . . . . . Ramming 53 | . . . . 53 Kinetic 782 | . . 126 . 656 Thermal . | . . . . . Explosive . | . . . . . Electromagnetic . | . . . . . Impact . | . . . . . Slashing . | . . . . . Piercing . | . . . . . Highest Corruption . | . . . . . Average Corruption . | . . . . . Corruption Purged . | . . . . . Corruption Blocked . | . . . . . Overload Shots . | . . . . . Overflow Damage . | . . . . . Projectiles . | . . . . . Explosions . | . . . . . Melee . | . . . . . Knockbacks . | . . . . . Impact . | . . . . . Kinetic . | . . . . . Secondary . | . . . . . Self-Inflicted Damage . | . . . . . Shots . | . . . . . Rammed . | . . . . . Targets Rammed 11 | . . . . 11 Kicked 11 | . . . . 11 Crushed . | . . . . . Highest Temperature 22 | . . . . 22 Average Temperature 5 | . . . . 5 Received Heat Transfer 204 | . . . . 204 Siege Activations . | . . . . . Robots Corrupted . | . . . . . Combat Hostiles . | . . . . . Parts Fried . | . . . . . Impact Corruptions . | . . . . . Robots Melted . | . . . . . Combat Hostiles . | . . . . . Parts Melted . | . . . . . Heat Transferred . | . . . . . Parts Sabotaged . | . . . . . Parts Stolen . | . . . . . Parts Stripped . | . . . . . Power Chain Reactions . | . . . . . Alert | -11 -10 -10 -10 -9 ------- Run | Yrd Mat Min Exi Min Peak Influence 86 | . . 70 . 86 Initial . | . . . . . Average 48 | . . 34 . 60 Maximum Alert Level . | . . . . . Low Security (%) 100 | 100 100 100 . 100 Level 1 . | . . . . . Level 2 . | . . . . . Level 3 . | . . . . . Level 4 . | . . . . . Level 5 . | . . . . . High Security . | . . . . . Max Security . | . . . . . Squads Dispatched . | . . . . . Investigation . | . . . . . Extermination . | . . . . . Reinforcement . | . . . . . Assault . | . . . . . Garrison . | . . . . . Intercept . | . . . . . Searches Triggered . | . . . . . Construction Impeded . | . . . . . Haulers Reinforced . | . . . . . Active Scanning Responses . | . . . . . Cargo Convoy Interrupts . | . . . . . Stealth | -11 -10 -10 -10 -9 --------- Run | Yrd Mat Min Exi Min Distress Signals . | . . . . . Communications Jammed . | . . . . . Distress Signals . | . . . . . Times Spotted 14 | . . 3 . 11 Peak Tracking Total 4 | . . 3 . 4 Tactical Retreats . | . . . . . Traps | -11 -10 -10 -10 -9 ------- Run | Yrd Mat Min Exi Min Traps Triggered . | . . . . . Indirectly . | . . . . . Trap Hack Attempts . | . . . . . Triggered . | . . . . . Disarmed . | . . . . . Reprogrammed . | . . . . . Reused . | . . . . . Traps Extracted . | . . . . . Installed . | . . . . . Triggered . | . . . . . Machines | -11 -10 -10 -10 -9 ---------- Run | Yrd Mat Min Exi Min Machines Disabled 2 | . . . . 2 Max in Single Turn 1 | . . . . 1 Machines Repaired . | . . . . . Machines Dismantled . | . . . . . Machines Sabotaged . | . . . . . Overloaded Fab Kills . | . . . . . Hacking | -11 -10 -10 -10 -9 --------- Run | Yrd Mat Min Exi Min Machines Accessed 1 | . . . 1 . Terminals . | . . . . . Fabricators . | . . . . . Repair Stations . | . . . . . Recycling Units . | . . . . . Scanalyzers . | . . . . . Garrison Access . | . . . . . Total Hacks 1 | . . . 1 . Successful 1 | . . . 1 . Failed . | . . . . . Catastrophic . | . . . . . Database Lockouts . | . . . . . Manual 1 | . . . 1 . Terminals . | . . . . . Fabricators . | . . . . . Repair Stations . | . . . . . Recycling Units . | . . . . . Scanalyzers . | . . . . . Garrison Access . | . . . . . Terminal Hacks 1 | . . . 1 . Derelict Proto ID Bank 1 | . . . 1 . Fabricator Hacks . | . . . . . Repair Station Hacks . | . . . . . Recycling Unit Hacks . | . . . . . Scanalyzer . | . . . . . Garrison Access Hacks . | . . . . . Unauthorized Hacks . | . . . . . Terminals . | . . . . . Fabricators . | . . . . . Repair Stations . | . . . . . Recycling Units . | . . . . . Scanalyzers . | . . . . . Garrison Access . | . . . . . Data Cores Recovered . | . . . . . Used . | . . . . . Hacking Detections . | . . . . . Full Trace Events . | . . . . . Feedback Events . | . . . . . Feedback Blocked . | . . . . . Robot Schematics Acquired . | . . . . . Robots Built . | . . . . . Authchips . | . . . . . Time . | . . . . . Total Robot Build Rating . | . . . . . Part Schematics Acquired . | . . . . . Parts Built . | . . . . . Authchips . | . . . . . Time . | . . . . . Total Part Build Rating . | . . . . . Parts Repaired . | . . . . . Time . | . . . . . Parts Recycled . | . . . . . Recycled Matter . | . . . . . Retrieved Matter . | . . . . . Retrieved Components . | . . . . . Parts Scanalyzed . | . . . . . Part Schematics Acquired . | . . . . . Parts Damaged . | . . . . . Bothacking | -11 -10 -10 -10 -9 ------------ Run | Yrd Mat Min Exi Min Used RIF Installer . | . . . . . Robots Hacked . | . . . . . Non-combat . | . . . . . Combat . | . . . . . Robot Hacks Applied . | . . . . . Relay Couplers Released . | . . . . . Fabnet Peak Effective % . | . . . . . Robots Rewired . | . . . . . Allies Hacked . | . . . . . Hacks Repelled . | . . . . . Allies | -11 -10 -10 -10 -9 -------- Run | Yrd Mat Min Exi Min Total Allies . | . . . . . Largest Group . | . . . . . Highest-Rated Group . | . . . . . Highest-Rated Ally . | . . . . . Total Orders . | . . . . . Ally Attacks . | . . . . . Total Damage . | . . . . . Kills . | . . . . . Allies Corrupted . | . . . . . Allies Melted . | . . . . . Intel | -11 -10 -10 -10 -9 ------- Run | Yrd Mat Min Exi Min Robot Analysis Total . | . . . . . Derelict Logs Recovered 2 | . . 1 . 1 Drone Launches . | . . . . . Drone Recoveries . | . . . . . Exploration | -11 -10 -10 -10 -9 ------------- Run | Yrd Mat Min Exi Min Turns Passed 1190 | 59 40 165 294 632 Spaces Moved 842 | 45 34 116 244 403 Core 6 | 6 . . . . Treads . | . . . . . Legs 836 | 39 34 116 244 403 Wheels . | . . . . . Hover . | . . . . . Flight . | . . . . . Fastest Speed 50 | 50 120 120 120 120 Average Speed 119 | 110 120 120 120 120 Slowest Speed 120 | 120 120 120 120 120 Overloaded Moves . | . . . . . Propulsion Burnouts . | . . . . . Robots Hopped . | . . . . . Cave-ins Triggered . | . . . . . Exploration Rate (%) 34 | 3 12 31 62 65 Regions Visited 4 Branch Regions 3 Pre-discovered Areas . | . . . . . Known Exits Taken . | . . . . . Unknown Exits Taken 4 | 1 1 1 1 . Scrap Searched 2 | . . . . 2 Spaces Dug . | . . . . . Terrain Destroyed . | . . . . . Melee . | . . . . . Projectile . | . . . . . AOE . | . . . . . Terrain Rammed . | . . . . . Walls Destroyed . | . . . . . Machines Disabled . | . . . . . Actions | -11 -10 -10 -10 -9 --------- Run | Yrd Mat Min Exi Min Total 925 | 51 33 124 244 473 Wait 14 | . . . . 14 Move 838 | 44 33 115 243 403 Hop . | . . . . . Pick Up 2 | 1 . . . 1 Fast Attach 7 | 6 . . 1 . Attach 1 | . . . . 1 Detach . | . . . . . Swap 6 | . . . . 6 Drop . | . . . . . Fire 46 | . . 9 . 37 Melee . | . . . . . Ram . | . . . . . Kick 11 | . . . . 11 Crush . | . . . . . Escape Stasis . | . . . . . Rewire . | . . . . . Trap . | . . . . . Miscellaneous . | . . . . . Route ------- -11/Scrapyard -10/Materials -10/Mines -10/Exiles (discovered 2 exits: [*Min x2]) -9/Mines History --------- Turn | Location | Event 37 | -11/Scrapyard | Discovered new exit (range 16) 60 | -11/Scrapyard | Entered Materials 75 | -10/Materials | Discovered new exit (range 14) 100 | -10/Materials | Entered Mines 165 | -10/Mines | Learned Materials stockpile data 259 | -10/Mines | Deemed a non-threat by the Exiles lab entrance 261 | -10/Mines | Discovered new exit (range 5) 265 | -10/Mines | Entered Exiles 281 | -10/Exiles | Discovered new exit (range 15) 297 | -10/Exiles | Met 8R-AWN 308 | -10/Exiles | Build established: Mutant 315 | -10/Exiles | Met EX-HEX 353 | -10/Exiles | Met EX-BIN 369 | -10/Exiles | Aligned with FarCom system 370 | -10/Exiles | Given EX-Vault access code 400 | -10/Exiles | Opened EX-Vault 415 | -10/Exiles | Found 0b10 Alert Chip 441 | -10/Exiles | Warned to stay clear of 0b10 Research branches 477 | -10/Exiles | Met EX-DEC 543 | -10/Exiles | Discovered new exit (range 14) 559 | -10/Exiles | Left Exiles lab with 0b10 Alert Chip 559 | -10/Exiles | Entered Mines 733 | -9/Mines | Core integrity fell below 50% 977 | -9/Mines | Core integrity fell below 20% 1173 | -9/Mines | Learned Materials emergency access door positions 1191 | -9/Mines | Destroyed by S-10 Pest with Light Assault Rifle Last Messages --------------- 00978_ Kicked S-10 Pest. 00980_ Kicked S-10 Pest out of the way. 00981_ Kicked U-05 Engineer. 00993_ Lgt. Nuclear Core destroyed. 00995_ S-10 Pest destroyed. 01005_ Seismic Survey Station disabled. 01008_ S-10 Pest destroyed. 01011_ Seismic Survey Station disabled. 01014_ Destroyed Flight Unit. 01017_ S-10 Pest destroyed. 01028_ Acquired 13 matter. 01030_ Acquired 3 matter. 01032_ Acquired 11 matter. 01037_ Acquired 13 matter. 01057_ Kicked U-05 Engineer out of the way. 01173_ Acquired derelict log, extracted data. Data stored: Materials emergency access points. 01187_ Critical hit (Destroy). 01187_ Imp. Aluminum Leg destroyed. 01189_ S-10 Pest destroyed. Map ----- +----------------------------------------------------+ | """ """ #????## #######??# ##???### | | """ """ #?????# #?????????# #### # | | #?????# ##????????# | | #########?????# #????????# | | ??????????????# #????????# ##### | | ??????????????## ##???????## #???## | | ???????????????# #?????#### ##???# | | ???????????????# ####### #???## | | ???????????????# #???# # | | ???????????????# #???# #### | | ???????????????### ## ##???# ##??? | | ?????????######### ## #????# # ##???? | | ?????????# ### #???## # #????? | | ?????????# #########?## ##??## #????? | | ?????????# #??????????## ####???# ###????? | | ?????????# #???????????## ##???#### ##??????? | | ?????????# #????????????## #????# #???????? | | ?????????# #?????????????# ##????# ##???????? | | ?????????# #?????????????# ##?????# ####????????? | | ?????????# #?????????????# #???#### #???????????? | | ?????????# #?????????????# #???# #######?????? | | ????###### ###???????????# ##### #?????? | | ???##!!## ##??????????# ####### #?????? | | ???#"[] # ##?????????# = #?????????????? | | ???# =!+ #????????## *%=######?????????????? | | ???#!* + #?????####@ s #?????????????????? | | ???#"!|!# #?????# ### s #???????????? | | ???## [## ##????# ##??# ???????????? | | ????###### ##?????# #????# ##??????????? | | ?????????# ##??????# #?????# ##???????????? | | ?????????# #???????# #??????####????????????? | | ?????????# #???????# ##??????????????????????? | | ?????????# #???????## ##???????????????????????? | | ?????????# #????????###?????????????????????????? | | ?????????# #????????????????????????????????????? | | ??????#### #????????????????????????????????????? | | ??????# ####?????????????????????????????????? | | ??????# # ##????????????????????????????????? | | ??????# ### ##???????????????????????????????? | | ??????# ## #???????????????????????????????? | | ???#### # #???????????????????????????????? | | ?### ! ##??????????????????????????????? | | ?# ! #??????????????????????????????? | | # #??????????????????????????????? | | # ## ##??????????????????????????????? | | #####?## ###???????????????????????????????? | | #???????### #?????????????????????????????????? | | ??????????# #?????????????????????????????????? | | ????????????#[ #???##########????????????????????? | | ????????????# #???# #????????????????????? | +----------------------------------------------------+ Best States ------------- Heat Dissipation 25 Energy Generation 14 Energy Capacity 265 Matter Stores 163 Matter Capacity 300 Sight Range 16 Terrain Scan Density 10 Evasion (%) 55 Item Schematics ----------------- None Robot Schematics ------------------ None Fabricated ------------ Nothing Alien Tech Used ----------------- None Achievements -------------- None Challenges ------------ None Game ------ Seed ChipRiotArchive Manual? 0 Play Time 00:12:10 Cumulative 24.1 hours Start 2024.04.05 @ 21:14:40 End 2024.04.05 @ 21:25:42 Sessions 1 Manual Loads 0 Difficulty Rogue Special Mode None Game No. 67 Rogue 65 Adventurer 2 Explorer 0 Win Type - Total 0 Types 0/0/0/0/0/0/0/0/0 Lore% 20 Gallery% 25 Achievement% 23 Wizard Run 0 Options --------- Layout 1 ASCII 0 Keyboard 1 Movement Arrows Keybinds 0 Fullscreen 2 Font 24/Smallcaps Map View 50x35 Zoom Use 0% Tactical HUD 1 Map Filters NONE Filters NONE Steam 1 RUN: 1e7076d2-973b-4859-958a-739e45afe0ea